Workbook

Sheet New Std Example
A1: Sample Illustration of Resource Adequacy Assessment | H1: 2011-03-23
H2: Curtailment Histogram | S2: Loads and Resources | AA2: Use of Contingency Resources | AJ2: Study Results (over all games)
H3: 0 | I3: 0-200 | J3: 201-400 | K3: 401-600 | L3: 601-800 | M3: 801-1000 | P3: Game | S3: Load | T3: Firm | U3: Non-Firm | V3: CR1 | W3: CR2 | X3: CR3 | Y3: Curt | AA3: CR1 | AB3: CR 2 | AC3: CR 3 | AD3: LOLP
H4: =LOOKUP($P$4,$A$58:$A$157,L58:L157) -> 1 | I4: 0 | J4: 0 | K4: 0 | L4: 0 | M4: 0 | P4: 1 | S4: =LOOKUP($P$4,A58:A157,B58:B157) -> 21422 | Y4: =LOOKUP($P$4,$A58:$A157,K58:K157) -> 0 | AA4: =LOOKUP($P$4,A58:A157,U58:U157) -> 1 | AB4: =LOOKUP(P4,A58:A157,V58:V157) -> 1 | AC4: =LOOKUP(P4,A58:A157,W58:W157) -> 1 | AD4: =LOOKUP(P4,A58:A157,Y58:Y157) -> 0
T5: =LOOKUP($P$4,A58:A157,E58:E157) -> 18250 | U5: =LOOKUP($P$4,A58:A157,F58:F157) -> 2197 | V5: =LOOKUP($P$4,$A58:$A157,H58:H157) -> 200 | W5: =LOOKUP($P$4,$A58:$A157,I58:I157) -> 300 | X5: =LOOKUP($P$4,$A58:$A157,J58:J157) -> 500
AH7: Cycle
AH8: Thru
AH9: Games
B56: Sig | C56: 500 | E56: Resources | L56: Curtailment Histogram Data | R56: Use of Cont Resources | U56: Probability of Use | AA56: Sorted | AC56: CVaR
A57: Game | B57: Fix Load | C57: Random Load | D57: Dist Fac | E57: Firm | F57: Fix-NF | G57: Non-firm | H57: CR1 | I57: CR2 | J57: CR3 | K57: Curt | L57: 0 | M57: 1-200 | N57: 201-400 | O57: 401-600 | P57: 601-800 | Q57: 801-1K | R57: CR1 | S57: CR2 | T57: CR3 | U57: CR1 | V57: CR2 | W57: CR3 | X57: # Curt | Y57: LOLP | Z57: Prob | AA57: Curt | AC57: (5%)
A58: 1 | B58: 21422 | C58: =RANDBETWEEN(20000,22000) -> 20491 | D58: =NORMDIST(C58,21000,$C$56,FALSE) -> 0.0004752314395 | E58: 18250 | F58: 2197 | G58: =RANDBETWEEN(1500,2500) -> 2475 | H58: 200 | I58: 300 | J58: 500 | K58: =MAX(B58-E58-F58-H58-I58-J58,0) -> 0 | L58: 1 | M58: 0 | N58: 0 | O58: 0 | P58: 0 | Q58: 0 | R58: =IF((B58-E58-F58)>0,1,0) -> 1 | S58: =IF(B58-E58-F58-H58>0,1,0) -> 1 | T58: =IF(B58-E58-F58-H58-I58>0,1,0) -> 1 | U58: =R58/A58 -> 1 | V58: =S58/A58 -> 1 | W58: =T58/A58 -> 1 | X58: =IF(K58>0,1,0) -> 0 | Y58: =X58/A58 -> 0 | Z58: =1/100 -> 0.01 | AA58: 961 | AC58: =SUM(AA58:AA62)/5 -> 795
A59: =A58+1 -> 2 | B59: 20705 | C59: =RANDBETWEEN(20000,22000) -> 20923 | D59: =NORMDIST(C59,21000,$C$56,FALSE) -> 0.0007884791207 | E59: 18250 | F59: 1882 | G59: =RANDBETWEEN(1500,2500) -> 2296 | H59: 200 | I59: 300 | J59: 500 | K59: =MAX(B59-E59-F59-H59-I59-J59,0) -> 0 | L59: =IF($K59<=0,1+L58,L58) -> 2 | M59: =IF(AND($K59>0,K59<=200),M58+1,M58) -> 0 | N59: =IF(AND($K59>200,$K59<=400),N58+1,N58) -> 0 | O59: =IF(AND($K59>400,$K59<=600),O58+1,O58) -> 0 | P59: =IF(AND($K59>600,$K59<=800),P58+1,P58) -> 0 | Q59: =IF(AND($K59>800,$K59<=1000),Q58+1,Q58) -> 0 | R59: =IF((B59-E59-F59)>0,R58+1,R58) -> 2 | S59: =IF(B59-E59-F59-H59>0,S58+1,S58) -> 2 | T59: =IF(B59-E59-F59-H59-I59>0,T58+1,T58) -> 2 | U59: =R59/A59 -> 1 | V59: =S59/A59 -> 1 | W59: =T59/A59 -> 1 | X59: =IF(K59>0,X58+1,X58) -> 0 | Y59: =X59/A59 -> 0 | Z59: =Z58+1/100 -> 0.02 | AA59: 952
A60: =A59+1 -> 3 | B60: 20150 | C60: 21487 | D60: 0.0004965210733 | E60: 18250 | F60: 1512 | G60: 1874 | H60: 200 | I60: 300 | J60: 500 | K60: 0 | L60: =IF($K60<=0,1+L59,L59) -> 3 | M60: =IF(AND($K60>0,K60<=200),M59+1,M59) -> 0 | N60: =IF(AND($K60>200,$K60<=400),N59+1,N59) -> 0 | O60: =IF(AND($K60>400,$K60<=600),O59+1,O59) -> 0 | P60: =IF(AND($K60>600,$K60<=800),P59+1,P59) -> 0 | Q60: =IF(AND($K60>800,$K60<=1000),Q59+1,Q59) -> 0 | R60: =IF((B60-E60-F60)>0,R59+1,R59) -> 3 | S60: =IF(B60-E60-F60-H60>0,S59+1,S59) -> 3 | T60: =IF(B60-E60-F60-H60-I60>0,T59+1,T59) -> 2 | U60: =R60/A60 -> 1 | V60: =S60/A60 -> 1 | W60: =T60/A60 -> 0.6666666667 | X60: =IF(K60>0,X59+1,X59) -> 0 | Y60: 0 | Z60: =Z59+1/100 -> 0.03 | AA60: 747
A61: 4 | B61: 20924 | C61: 20263 | D61: 0.0002692461256 | E61: 18250 | F61: 2424 | G61: 1766 | H61: 200 | I61: 300 | J61: 500 | K61: =MAX(B61-E61-F61-H61-I61-J61,0) -> 0 | L61: 4 | M61: =IF(AND($K61>0,K61<=200),M60+1,M60) -> 0 | N61: =IF(AND($K61>200,$K61<=400),N60+1,N60) -> 0 | O61: =IF(AND($K61>400,$K61<=600),O60+1,O60) -> 0 | P61: =IF(AND($K61>600,$K61<=800),P60+1,P60) -> 0 | Q61: =IF(AND($K61>800,$K61<=1000),Q60+1,Q60) -> 0 | R61: 4 | S61: 4 | T61: 2 | U61: 1 | V61: 1 | W61: 0.5 | X61: 0 | Y61: 0 | Z61: 0.04 | AA61: 737
A62: 5 | B62: 21742 | C62: 21015 | D62: 0.0007975255935 | E62: 18250 | F62: 1540 | G62: 2316 | H62: 200 | I62: 300 | J62: 500 | K62: 952 | L62: 4 | M62: =IF(AND($K62>0,K62<=200),M61+1,M61) -> 0 | N62: =IF(AND($K62>200,$K62<=400),N61+1,N61) -> 0 | O62: =IF(AND($K62>400,$K62<=600),O61+1,O61) -> 0 | P62: =IF(AND($K62>600,$K62<=800),P61+1,P61) -> 0 | Q62: =IF(AND($K62>800,$K62<=1000),Q61+1,Q61) -> 1 | R62: 5 | S62: 5 | T62: 3 | U62: 1 | V62: 1 | W62: 0.6 | X62: 1 | Y62: 0.2 | Z62: 0.05 | AA62: 578
A63: 6 | B63: 21057 | C63: 20912 | D63: 0.0007856221301 | E63: 18250 | F63: 1756 | G63: 1894 | H63: 200 | I63: 300 | J63: 500 | K63: 51 | L63: 4 | M63: 1 | N63: 0 | O63: 0 | P63: 0 | Q63: 1 | R63: 6 | S63: 6 | T63: 4 | U63: 1 | V63: 1 | W63: 0.6666666667 | X63: 2 | Y63: 0.3333333333 | Z63: 0.06 | AA63: 568
A64: 7 | B64: 20799 | C64: 21409 | D64: 0.0005710072613 | E64: 18250 | F64: 2322 | G64: 2298 | H64: 200 | I64: 300 | J64: 500 | K64: 0 | L64: 5 | M64: 1 | N64: 0 | O64: 0 | P64: 0 | Q64: 1 | R64: 7 | S64: 7 | T64: 4 | U64: 1 | V64: 1 | W64: 0.5714285714 | X64: 2 | Y64: 0.2857142857 | Z64: 0.07 | AA64: 486
A65: 8 | B65: 21028 | C65: 21758 | D65: 0.0002528599875 | E65: 18250 | F65: 2295 | G65: 1503 | H65: 200 | I65: 300 | J65: 500 | K65: 0 | L65: 6 | M65: 1 | N65: 0 | O65: 0 | P65: 0 | Q65: 1 | R65: 8 | S65: 8 | T65: 4 | U65: 1 | V65: =S65/A65 -> 1 | W65: 0.5 | X65: 2 | Y65: 0.25 | Z65: 0.08 | AA65: 466
A66: 9 | B66: 20018 | C66: 20907 | D66: 0.0007842014402 | E66: 18250 | F66: 2432 | G66: 2421 | H66: 200 | I66: 300 | J66: 500 | K66: 0 | L66: 7 | M66: 1 | N66: 0 | O66: 0 | P66: 0 | Q66: 1 | R66: 8 | S66: 8 | T66: 4 | U66: 0.8888888889 | V66: 0.8888888889 | W66: 0.4444444444 | X66: 2 | Y66: 0.2222222222 | Z66: 0.09 | AA66: 431
A67: 10 | B67: 20576 | C67: 21982 | D67: 0.0001159681896 | E67: 18250 | F67: 2342 | G67: 2044 | H67: 200 | I67: 300 | J67: 500 | K67: 0 | L67: 8 | M67: 1 | N67: 0 | O67: 0 | P67: 0 | Q67: 1 | R67: 8 | S67: 8 | T67: 4 | U67: 0.8 | V67: 0.8 | W67: 0.4 | X67: 2 | Y67: 0.2 | Z67: 0.1 | AA67: 378
A68: 11 | B68: 21218 | C68: 20956 | D68: 0.0007948011252 | E68: 18250 | F68: 1590 | G68: 2019 | H68: 200 | I68: 300 | J68: 500 | K68: 378 | L68: 8 | M68: 1 | N68: 1 | O68: 0 | P68: 0 | Q68: 1 | R68: 9 | S68: 9 | T68: 5 | U68: 0.8181818182 | V68: 0.8181818182 | W68: 0.4545454545 | X68: 3 | Y68: 0.2727272727 | Z68: 0.11 | AA68: 361
A69: 12 | B69: 21017 | C69: 20711 | D69: 0.0006751412487 | E69: 18250 | F69: 2380 | G69: 1943 | H69: 200 | I69: 300 | J69: 500 | K69: 0 | L69: 9 | M69: 1 | N69: 1 | O69: 0 | P69: 0 | Q69: 1 | R69: 10 | S69: 10 | T69: 5 | U69: 0.8333333333 | V69: 0.8333333333 | W69: 0.4166666667 | X69: 3 | Y69: 0.25 | Z69: 0.12 | AA69: 328
A70: 13 | B70: 21277 | C70: 20278 | D70: 0.0002812927456 | E70: 18250 | F70: 1699 | G70: 1980 | H70: 200 | I70: 300 | J70: 500 | K70: 328 | L70: 9 | M70: 1 | N70: 2 | O70: 0 | P70: 0 | Q70: 1 | R70: 11 | S70: 11 | T70: 6 | U70: 0.8461538462 | V70: 0.8461538462 | W70: 0.4615384615 | X70: 4 | Y70: 0.3076923077 | Z70: 0.13 | AA70: 297
A71: 14 | B71: 21076 | C71: 20219 | D71: 0.0002355779664 | E71: 18250 | F71: 1797 | G71: 2392 | H71: 200 | I71: 300 | J71: 500 | K71: 29 | L71: 9 | M71: 2 | N71: 2 | O71: 0 | P71: 0 | Q71: 1 | R71: 12 | S71: 12 | T71: 7 | U71: 0.8571428571 | V71: 0.8571428571 | W71: 0.5 | X71: 5 | Y71: 0.3571428571 | Z71: 0.14 | AA71: 284
A72: 15 | B72: 20131 | C72: 21507 | D72: 0.0004771667098 | E72: 18250 | F72: 1759 | G72: 2024 | H72: 200 | I72: 300 | J72: 500 | K72: 0 | L72: 10 | M72: 2 | N72: 2 | O72: 0 | P72: 0 | Q72: 1 | R72: 13 | S72: 12 | T72: 7 | U72: 0.8666666667 | V72: 0.8 | W72: 0.4666666667 | X72: 5 | Y72: 0.3333333333 | Z72: 0.15 | AA72: 259
A73: 16 | B73: 20321 | C73: 21360 | D73: 0.0006157025209 | E73: 18250 | F73: 2132 | G73: 2386 | H73: 200 | I73: 300 | J73: 500 | K73: 0 | L73: 11 | M73: 2 | N73: 2 | O73: 0 | P73: 0 | Q73: 1 | R73: 13 | S73: 12 | T73: 7 | U73: 0.8125 | V73: 0.75 | W73: 0.4375 | X73: 5 | Y73: 0.3125 | Z73: 0.16 | AA73: 239
A74: 17 | B74: 20875 | C74: 21812 | D74: 0.0002134229604 | E74: 18250 | F74: 2363 | G74: 1864 | H74: 200 | I74: 300 | J74: 500 | K74: 0 | L74: 12 | M74: 2 | N74: 2 | O74: 0 | P74: 0 | Q74: 1 | R74: 14 | S74: 13 | T74: 7 | U74: 0.8235294118 | V74: 0.7647058824 | W74: 0.4117647059 | X74: 5 | Y74: 0.2941176471 | Z74: 0.17 | AA74: 227
A75: 18 | B75: 20693 | C75: 20774 | D75: 0.0007204038275 | E75: 18250 | F75: 2293 | G75: 1741 | H75: 200 | I75: 300 | J75: 500 | K75: 0 | L75: 13 | M75: 2 | N75: 2 | O75: 0 | P75: 0 | Q75: 1 | R75: 15 | S75: 13 | T75: 7 | U75: 0.8333333333 | V75: 0.7222222222 | W75: 0.3888888889 | X75: 5 | Y75: 0.2777777778 | Z75: 0.18 | AA75: 219
A76: 19 | B76: 21204 | C76: 21808 | D76: 0.0002162069231 | E76: 18250 | F76: 1853 | G76: 1679 | H76: 200 | I76: 300 | J76: 500 | K76: 101 | L76: 13 | M76: 3 | N76: 2 | O76: 0 | P76: 0 | Q76: 1 | R76: 16 | S76: 14 | T76: 8 | U76: 0.8421052632 | V76: 0.7368421053 | W76: 0.4210526316 | X76: 6 | Y76: 0.3157894737 | Z76: 0.19 | AA76: 213
A77: 20 | B77: 21347 | C77: 21560 | D77: 0.0004261382936 | E77: 18250 | F77: 1611 | G77: 1905 | H77: 200 | I77: 300 | J77: 500 | K77: 486 | L77: 13 | M77: 3 | N77: 2 | O77: 1 | P77: 0 | Q77: 1 | R77: 17 | S77: 15 | T77: 9 | U77: 0.85 | V77: 0.75 | W77: 0.45 | X77: 7 | Y77: 0.35 | Z77: 0.2 | AA77: 207
A78: 21 | B78: 20645 | C78: 21316 | D78: 0.0006534407912 | E78: 18250 | F78: 1653 | G78: 2115 | H78: 200 | I78: 300 | J78: 500 | K78: 0 | L78: 14 | M78: 3 | N78: 2 | O78: 1 | P78: 0 | Q78: 1 | R78: 18 | S78: 16 | T78: 10 | U78: 0.8571428571 | V78: 0.7619047619 | W78: 0.4761904762 | X78: 7 | Y78: 0.3333333333 | Z78: 0.21 | AA78: 148
A79: 22 | B79: 21463 | C79: 21729 | D79: 0.0002756362127 | E79: 18250 | F79: 2211 | G79: 2341 | H79: 200 | I79: 300 | J79: 500 | K79: 2 | L79: 14 | M79: 4 | N79: 2 | O79: 1 | P79: 0 | Q79: 1 | R79: 19 | S79: 17 | T79: 11 | U79: 0.8636363636 | V79: 0.7727272727 | W79: 0.5 | X79: 8 | Y79: 0.3636363636 | Z79: 0.22 | AA79: 138
A80: 23 | B80: 20468 | C80: 20048 | D80: 0.0001302370077 | E80: 18250 | F80: 1508 | G80: 2339 | H80: 200 | I80: 300 | J80: 500 | K80: 0 | L80: 15 | M80: 4 | N80: 2 | O80: 1 | P80: 0 | Q80: 1 | R80: 20 | S80: 18 | T80: 12 | U80: 0.8695652174 | V80: 0.7826086957 | W80: 0.5217391304 | X80: 8 | Y80: 0.347826087 | Z80: 0.23 | AA80: 122
A81: 24 | B81: 21350 | C81: 20529 | D81: 0.0005119781387 | E81: 18250 | F81: 1893 | G81: 1992 | H81: 200 | I81: 300 | J81: 500 | K81: 207 | L81: 15 | M81: 4 | N81: 3 | O81: 1 | P81: 0 | Q81: 1 | R81: 21 | S81: 19 | T81: 13 | U81: 0.875 | V81: 0.7916666667 | W81: 0.5416666667 | X81: 9 | Y81: 0.375 | Z81: 0.24 | AA81: 101
A82: 25 | B82: 21142 | C82: 20814 | D82: 0.0007445439821 | E82: 18250 | F82: 1744 | G82: 1855 | H82: 200 | I82: 300 | J82: 500 | K82: 148 | L82: 15 | M82: 5 | N82: 3 | O82: 1 | P82: 0 | Q82: 1 | R82: 22 | S82: 20 | T82: 14 | U82: 0.88 | V82: 0.8 | W82: 0.56 | X82: 10 | Y82: 0.4 | Z82: 0.25 | AA82: 99
A83: 26 | B83: 20663 | C83: 21109 | D83: 0.0007791487101 | E83: 18250 | F83: 2398 | G83: 2216 | H83: 200 | I83: 300 | J83: 500 | K83: 0 | L83: 16 | M83: 5 | N83: 3 | O83: 1 | P83: 0 | Q83: 1 | R83: 23 | S83: 20 | T83: 14 | U83: 0.8846153846 | V83: 0.7692307692 | W83: 0.5384615385 | X83: 10 | Y83: 0.3846153846 | Z83: 0.26 | AA83: 74
A84: 27 | B84: 21758 | C84: 20979 | D84: 0.0007971811369 | E84: 18250 | F84: 2370 | G84: 1833 | H84: 200 | I84: 300 | J84: 500 | K84: 138 | L84: 16 | M84: 6 | N84: 3 | O84: 1 | P84: 0 | Q84: 1 | R84: 24 | S84: 21 | T84: 15 | U84: 0.8888888889 | V84: 0.7777777778 | W84: 0.5555555556 | X84: 11 | Y84: 0.4074074074 | Z84: 0.27 | AA84: 51
A85: 28 | B85: 21387 | C85: 21880 | D85: 0.0001695527226 | E85: 18250 | F85: 1671 | G85: 1541 | H85: 200 | I85: 300 | J85: 500 | K85: 466 | L85: 16 | M85: 6 | N85: 3 | O85: 2 | P85: 0 | Q85: 1 | R85: 25 | S85: 22 | T85: 16 | U85: 0.8928571429 | V85: 0.7857142857 | W85: 0.5714285714 | X85: 12 | Y85: 0.4285714286 | Z85: 0.28 | AA85: 46
A86: 29 | B86: 20107 | C86: 20146 | D86: 0.0001855513988 | E86: 18250 | F86: 2150 | G86: 1718 | H86: 200 | I86: 300 | J86: 500 | K86: 0 | L86: 17 | M86: 6 | N86: 3 | O86: 2 | P86: 0 | Q86: 1 | R86: 25 | S86: 22 | T86: 16 | U86: 0.8620689655 | V86: 0.7586206897 | W86: 0.5517241379 | X86: 12 | Y86: 0.4137931034 | Z86: 0.29 | AA86: 29
A87: 30 | B87: 20195 | C87: 20439 | D87: 0.0004251839617 | E87: 18250 | F87: 1543 | G87: 2056 | H87: 200 | I87: 300 | J87: 500 | K87: 0 | L87: 18 | M87: 6 | N87: 3 | O87: 2 | P87: 0 | Q87: 1 | R87: 26 | S87: 23 | T87: 16 | U87: 0.8666666667 | V87: 0.7666666667 | W87: 0.5333333333 | X87: 12 | Y87: 0.4 | Z87: 0.3 | AA87: 25
A88: 31 | B88: 20685 | C88: 21516 | D88: 0.0004684605655 | E88: 18250 | F88: 1777 | G88: 1942 | H88: 200 | I88: 300 | J88: 500 | K88: 0 | L88: 19 | M88: 6 | N88: 3 | O88: 2 | P88: 0 | Q88: 1 | R88: 27 | S88: 24 | T88: 17 | U88: 0.8709677419 | V88: 0.7741935484 | W88: 0.5483870968 | X88: 12 | Y88: 0.3870967742 | Z88: 0.31 | AA88: 17
A89: 32 | B89: 20432 | C89: 20063 | D89: 0.0001378306733 | E89: 18250 | F89: 2311 | G89: 1563 | H89: 200 | I89: 300 | J89: 500 | K89: 0 | L89: 20 | M89: 6 | N89: 3 | O89: 2 | P89: 0 | Q89: 1 | R89: 27 | S89: 24 | T89: 17 | U89: 0.84375 | V89: 0.75 | W89: 0.53125 | X89: 12 | Y89: 0.375 | Z89: 0.32 | AA89: 8
A90: 33 | B90: 20752 | C90: 21527 | D90: 0.0004578336582 | E90: 18250 | F90: 2284 | G90: 1626 | H90: 200 | I90: 300 | J90: 500 | K90: 0 | L90: 21 | M90: 6 | N90: 3 | O90: 2 | P90: 0 | Q90: 1 | R90: 28 | S90: 25 | T90: 17 | U90: 0.8484848485 | V90: 0.7575757576 | W90: =T90/A90 -> 0.5151515152 | X90: 12 | Y90: 0.3636363636 | Z90: 0.33 | AA90: 2
A91: 34 | B91: 20202 | C91: 20780 | D91: 0.0007242697648 | E91: 18250 | F91: 1512 | G91: 1825 | H91: 200 | I91: 300 | J91: 500 | K91: 0 | L91: 22 | M91: 6 | N91: 3 | O91: 2 | P91: 0 | Q91: 1 | R91: 29 | S91: 26 | T91: 17 | U91: 0.8529411765 | V91: 0.7647058824 | W91: 0.5 | X91: 12 | Y91: 0.3529411765 | Z91: 0.34 | AA91: 0
A92: 35 | B92: 21327 | C92: 21489 | D92: 0.0004945864339 | E92: 18250 | F92: 2361 | G92: 2161 | H92: 200 | I92: 300 | J92: 500 | K92: 0 | L92: 23 | M92: 6 | N92: 3 | O92: 2 | P92: 0 | Q92: 1 | R92: 30 | S92: 27 | T92: 18 | U92: 0.8571428571 | V92: 0.7714285714 | W92: 0.5142857143 | X92: 12 | Y92: 0.3428571429 | Z92: 0.35 | AA92: 0
A93: 36 | B93: 21359 | C93: 21397 | D93: 0.0005821603506 | E93: 18250 | F93: 2248 | G93: 1703 | H93: 200 | I93: 300 | J93: 500 | K93: 0 | L93: 24 | M93: 6 | N93: 3 | O93: 2 | P93: 0 | Q93: 1 | R93: 31 | S93: 28 | T93: 19 | U93: 0.8611111111 | V93: 0.7777777778 | W93: 0.5277777778 | X93: 12 | Y93: 0.3333333333 | Z93: 0.36 | AA93: 0
A94: 37 | B94: 20921 | C94: 21761 | D94: 0.0002505658916 | E94: 18250 | F94: 2439 | G94: 2282 | H94: 200 | I94: 300 | J94: 500 | K94: 0 | L94: 25 | M94: 6 | N94: 3 | O94: 2 | P94: 0 | Q94: 1 | R94: 32 | S94: 29 | T94: 19 | U94: 0.8648648649 | V94: 0.7837837838 | W94: 0.5135135135 | X94: 12 | Y94: 0.3243243243 | Z94: 0.37 | AA94: 0
A95: 38 | B95: 20738 | C95: 21398 | D95: 0.0005812354512 | E95: 18250 | F95: 1894 | G95: 2303 | H95: 200 | I95: 300 | J95: 500 | K95: 0 | L95: 26 | M95: 6 | N95: 3 | O95: 2 | P95: 0 | Q95: 1 | R95: 33 | S95: 30 | T95: 20 | U95: 0.8684210526 | V95: 0.7894736842 | W95: 0.5263157895 | X95: 12 | Y95: 0.3157894737 | Z95: 0.38 | AA95: 0
A96: 39 | B96: 21241 | C96: 21367 | D96: 0.0006094676836 | E96: 18250 | F96: 1764 | G96: 2326 | H96: 200 | I96: 300 | J96: 500 | K96: 227 | L96: 26 | M96: 6 | N96: 4 | O96: 2 | P96: 0 | Q96: 1 | R96: 34 | S96: 31 | T96: 21 | U96: 0.8717948718 | V96: 0.7948717949 | W96: 0.5384615385 | X96: 13 | Y96: 0.3333333333 | Z96: 0.39 | AA96: 0
A97: 40 | B97: 21059 | C97: 20554 | D97: 0.0005359988022 | E97: 18250 | F97: 1763 | G97: 1848 | H97: 200 | I97: 300 | J97: 500 | K97: 46 | L97: 26 | M97: 7 | N97: 4 | O97: 2 | P97: 0 | Q97: 1 | R97: 35 | S97: 32 | T97: 22 | U97: 0.875 | V97: 0.8 | W97: 0.55 | X97: 14 | Y97: 0.35 | Z97: 0.4 | AA97: 0
A98: 41 | B98: 21267 | C98: 21212 | D98: 0.0007292932586 | E98: 18250 | F98: 2076 | G98: 2262 | H98: 200 | I98: 300 | J98: 500 | K98: 0 | L98: 27 | M98: 7 | N98: 4 | O98: 2 | P98: 0 | Q98: 1 | R98: 36 | S98: 33 | T98: 23 | U98: 0.8780487805 | V98: 0.8048780488 | W98: 0.5609756098 | X98: 14 | Y98: 0.3414634146 | Z98: 0.41 | AA98: 0
A99: 42 | B99: 20772 | C99: 20741 | D99: 0.0006977088716 | E99: 18250 | F99: 1842 | G99: 1609 | H99: 200 | I99: 300 | J99: 500 | K99: 0 | L99: 28 | M99: 7 | N99: 4 | O99: 2 | P99: 0 | Q99: 1 | R99: 37 | S99: 34 | T99: 24 | U99: 0.880952381 | V99: 0.8095238095 | W99: 0.5714285714 | X99: 14 | Y99: 0.3333333333 | Z99: 0.42 | AA99: 0
A100: 43 | B100: 20141 | C100: 20700 | D100: 0.0006664492058 | E100: 18250 | F100: 2261 | G100: 2441 | H100: 200 | I100: 300 | J100: 500 | K100: 0 | L100: 29 | M100: 7 | N100: 4 | O100: 2 | P100: 0 | Q100: 1 | R100: 37 | S100: 34 | T100: 24 | U100: 0.8604651163 | V100: 0.7906976744 | W100: 0.5581395349 | X100: 14 | Y100: 0.3255813953 | Z100: 0.43 | AA100: 0
A101: 44 | B101: 21858 | C101: 20427 | D101: 0.0004137682053 | E101: 18250 | F101: 1861 | G101: 2061 | H101: 200 | I101: 300 | J101: 500 | K101: 747 | L101: 29 | M101: 7 | N101: 4 | O101: 2 | P101: 1 | Q101: 1 | R101: 38 | S101: 35 | T101: 25 | U101: 0.8636363636 | V101: 0.7954545455 | W101: 0.5681818182 | X101: 15 | Y101: 0.3409090909 | Z101: 0.44 | AA101: 0
A102: 45 | B102: 20669 | C102: 20516 | D102: 0.000499422248 | E102: 18250 | F102: 2386 | G102: 1549 | H102: 200 | I102: 300 | J102: 500 | K102: 0 | L102: 30 | M102: 7 | N102: 4 | O102: 2 | P102: 1 | Q102: 1 | R102: 39 | S102: 35 | T102: 25 | U102: 0.8666666667 | V102: 0.7777777778 | W102: 0.5555555556 | X102: 15 | Y102: 0.3333333333 | Z102: 0.45 | AA102: 0
A103: 46 | B103: 20182 | C103: 21739 | D103: 0.0002676611798 | E103: 18250 | F103: 1871 | G103: 1981 | H103: 200 | I103: 300 | J103: 500 | K103: 0 | L103: 31 | M103: 7 | N103: 4 | O103: 2 | P103: 1 | Q103: 1 | R103: 40 | S103: 35 | T103: 25 | U103: 0.8695652174 | V103: 0.7608695652 | W103: 0.5434782609 | X103: 15 | Y103: 0.3260869565 | Z103: 0.46 | AA103: 0
A104: 47 | B104: 20277 | C104: 21296 | D104: 0.0006696344231 | E104: 18250 | F104: 1606 | G104: 1954 | H104: 200 | I104: 300 | J104: 500 | K104: 0 | L104: 32 | M104: 7 | N104: 4 | O104: 2 | P104: 1 | Q104: 1 | R104: 41 | S104: 36 | T104: 25 | U104: 0.8723404255 | V104: 0.7659574468 | W104: 0.5319148936 | X104: 15 | Y104: 0.3191489362 | Z104: 0.47 | AA104: 0
A105: 48 | B105: 20873 | C105: 20375 | D105: 0.0003652981708 | E105: 18250 | F105: 1661 | G105: 2016 | H105: 200 | I105: 300 | J105: 500 | K105: 0 | L105: 33 | M105: 7 | N105: 4 | O105: 2 | P105: 1 | Q105: 1 | R105: 42 | S105: 37 | T105: 26 | U105: 0.875 | V105: 0.7708333333 | W105: 0.5416666667 | X105: 15 | Y105: 0.3125 | Z105: 0.48 | AA105: 0
A106: 49 | B106: 20415 | C106: 20712 | D106: 0.0006759208114 | E106: 18250 | F106: 1589 | G106: 2353 | H106: 200 | I106: 300 | J106: 500 | K106: 0 | L106: 34 | M106: 7 | N106: 4 | O106: 2 | P106: 1 | Q106: 1 | R106: 43 | S106: 38 | T106: 27 | U106: 0.8775510204 | V106: 0.7755102041 | W106: 0.5510204082 | X106: 15 | Y106: 0.306122449 | Z106: 0.49 | AA106: 0
A107: 50 | B107: 20791 | C107: 20267 | D107: 0.0002724311513 | E107: 18250 | F107: 1578 | G107: 1542 | H107: 200 | I107: 300 | J107: 500 | K107: 0 | L107: 35 | M107: 7 | N107: 4 | O107: 2 | P107: 1 | Q107: 1 | R107: 44 | S107: 39 | T107: 28 | U107: 0.88 | V107: 0.78 | W107: 0.56 | X107: 15 | Y107: 0.3 | Z107: 0.5 | AA107: 0
A108: 51 | B108: 21027 | C108: 20439 | D108: 0.0004251839617 | E108: 18250 | F108: 1518 | G108: 2037 | H108: 200 | I108: 300 | J108: 500 | K108: 259 | L108: 35 | M108: 7 | N108: 5 | O108: 2 | P108: 1 | Q108: 1 | R108: 45 | S108: 40 | T108: 29 | U108: 0.8823529412 | V108: 0.7843137255 | W108: 0.568627451 | X108: 16 | Y108: 0.3137254902 | Z108: 0.51 | AA108: 0
A109: 52 | B109: 20738 | C109: 20652 | D109: 0.0006262539291 | E109: 18250 | F109: 1939 | G109: 2398 | H109: 200 | I109: 300 | J109: 500 | K109: 0 | L109: 36 | M109: 7 | N109: 5 | O109: 2 | P109: 1 | Q109: 1 | R109: 46 | S109: 41 | T109: 30 | U109: 0.8846153846 | V109: 0.7884615385 | W109: 0.5769230769 | X109: 16 | Y109: 0.3076923077 | Z109: 0.52 | AA109: 0
A110: 53 | B110: 21506 | C110: 21400 | D110: 0.0005793831055 | E110: 18250 | F110: 2445 | G110: 2069 | H110: 200 | I110: 300 | J110: 500 | K110: 0 | L110: 37 | M110: 7 | N110: 5 | O110: 2 | P110: 1 | Q110: 1 | R110: 47 | S110: 42 | T110: 31 | U110: 0.8867924528 | V110: 0.7924528302 | W110: 0.5849056604 | X110: 16 | Y110: 0.3018867925 | Z110: 0.53 | AA110: 0
A111: 54 | B111: 20002 | C111: 20692 | D111: 0.0006599974203 | E111: 18250 | F111: 1875 | G111: 1846 | H111: 200 | I111: 300 | J111: 500 | K111: 0 | L111: 38 | M111: 7 | N111: 5 | O111: 2 | P111: 1 | Q111: 1 | R111: 47 | S111: 42 | T111: 31 | U111: 0.8703703704 | V111: 0.7777777778 | W111: 0.5740740741 | X111: 16 | Y111: 0.2962962963 | Z111: 0.54 | AA111: 0
A112: 55 | B112: 21913 | C112: 20806 | D112: 0.0007400308883 | E112: 18250 | F112: 2085 | G112: 1682 | H112: 200 | I112: 300 | J112: 500 | K112: 578 | L112: 38 | M112: 7 | N112: 5 | O112: 3 | P112: 1 | Q112: 1 | R112: 48 | S112: 43 | T112: 32 | U112: 0.8727272727 | V112: 0.7818181818 | W112: 0.5818181818 | X112: 17 | Y112: 0.3090909091 | Z112: 0.55 | AA112: 0
A113: 56 | B113: 21344 | C113: 21086 | D113: 0.0007861691134 | E113: 18250 | F113: 2285 | G113: 2238 | H113: 200 | I113: 300 | J113: 500 | K113: 0 | L113: 39 | M113: 7 | N113: 5 | O113: 3 | P113: 1 | Q113: 1 | R113: 49 | S113: 44 | T113: 33 | U113: 0.875 | V113: 0.7857142857 | W113: 0.5892857143 | X113: 17 | Y113: 0.3035714286 | Z113: 0.56 | AA113: 0
A114: 57 | B114: 21945 | C114: 20752 | D114: 0.0007055346797 | E114: 18250 | F114: 2482 | G114: 1895 | H114: 200 | I114: 300 | J114: 500 | K114: 213 | L114: 39 | M114: 7 | N114: 6 | O114: 3 | P114: 1 | Q114: 1 | R114: 50 | S114: 45 | T114: 34 | U114: 0.8771929825 | V114: 0.7894736842 | W114: 0.5964912281 | X114: 18 | Y114: 0.3157894737 | Z114: 0.57 | AA114: 0
A115: 58 | B115: 21732 | C115: 21024 | D115: 0.000796965927 | E115: 18250 | F115: 2474 | G115: 2362 | H115: 200 | I115: 300 | J115: 500 | K115: 8 | L115: 39 | M115: 8 | N115: 6 | O115: 3 | P115: 1 | Q115: 1 | R115: 51 | S115: 46 | T115: 35 | U115: 0.8793103448 | V115: 0.7931034483 | W115: 0.6034482759 | X115: 19 | Y115: 0.3275862069 | Z115: 0.58 | AA115: 0
A116: 59 | B116: 21134 | C116: 21767 | D116: 0.0002460133804 | E116: 18250 | F116: 2099 | G116: 2222 | H116: 200 | I116: 300 | J116: 500 | K116: 0 | L116: 40 | M116: 8 | N116: 6 | O116: 3 | P116: 1 | Q116: 1 | R116: 52 | S116: 47 | T116: 36 | U116: 0.8813559322 | V116: 0.7966101695 | W116: 0.6101694915 | X116: 19 | Y116: 0.3220338983 | Z116: 0.59 | AA116: 0
A117: 60 | B117: 21050 | C117: 21044 | D117: 0.0007948011252 | E117: 18250 | F117: 2008 | G117: 1934 | H117: 200 | I117: 300 | J117: 500 | K117: 0 | L117: 41 | M117: 8 | N117: 6 | O117: 3 | P117: 1 | Q117: 1 | R117: 53 | S117: 48 | T117: 37 | U117: 0.8833333333 | V117: 0.8 | W117: 0.6166666667 | X117: 19 | Y117: 0.3166666667 | Z117: 0.6 | AA117: 0
A118: 61 | B118: 20597 | C118: 20542 | D118: 0.0005244950165 | E118: 18250 | F118: 1992 | G118: 2183 | H118: 200 | I118: 300 | J118: 500 | K118: 0 | L118: 42 | M118: 8 | N118: 6 | O118: 3 | P118: 1 | Q118: 1 | R118: 54 | S118: 49 | T118: 37 | U118: 0.8852459016 | V118: 0.8032786885 | W118: 0.606557377 | X118: 19 | Y118: 0.3114754098 | Z118: 0.61 | AA118: 0
A119: 62 | B119: 20788 | C119: 21953 | D119: 0.0001297417487 | E119: 18250 | F119: 1955 | G119: 2061 | H119: 200 | I119: 300 | J119: 500 | K119: 0 | L119: 43 | M119: 8 | N119: 6 | O119: 3 | P119: 1 | Q119: 1 | R119: 55 | S119: 50 | T119: 38 | U119: 0.8870967742 | V119: 0.8064516129 | W119: 0.6129032258 | X119: 19 | Y119: 0.3064516129 | Z119: 0.62 | AA119: 0
A120: 63 | B120: 21967 | C120: 21970 | D120: 0.0001215303379 | E120: 18250 | F120: 1756 | G120: 2062 | H120: 200 | I120: 300 | J120: 500 | K120: 961 | L120: 43 | M120: 8 | N120: 6 | O120: 3 | P120: 1 | Q120: 2 | R120: 56 | S120: 51 | T120: 39 | U120: 0.8888888889 | V120: 0.8095238095 | W120: 0.619047619 | X120: 20 | Y120: 0.3174603175 | Z120: 0.63 | AA120: 0
A121: 64 | B121: 20062 | C121: 20630 | D121: 0.0006067785675 | E121: 18250 | F121: 1914 | G121: 2160 | H121: 200 | I121: 300 | J121: 500 | K121: 0 | L121: 44 | M121: 8 | N121: 6 | O121: 3 | P121: 1 | Q121: 2 | R121: 56 | S121: 51 | T121: 39 | U121: 0.875 | V121: 0.796875 | W121: 0.609375 | X121: 20 | Y121: 0.3125 | Z121: 0.64 | AA121: 0
A122: 65 | B122: 21137 | C122: 21134 | D122: 0.000769739331 | E122: 18250 | F122: 1648 | G122: 2120 | H122: 200 | I122: 300 | J122: 500 | K122: 239 | L122: 44 | M122: 8 | N122: 7 | O122: 3 | P122: 1 | Q122: 2 | R122: 57 | S122: 52 | T122: 40 | U122: 0.8769230769 | V122: 0.8 | W122: =T122/A122 -> 0.6153846154 | X122: 21 | Y122: 0.3230769231 | Z122: 0.65 | AA122: 0
A123: 66 | B123: 21211 | C123: =RANDBETWEEN(20000,22000) -> 21845 | D123: =NORMDIST(C123,21000,$C$56,FALSE) -> 0.0001913135923 | E123: 18250 | F123: 1530 | G123: =RANDBETWEEN(1500,2500) -> 1669 | H123: 200 | I123: 300 | J123: 500 | K123: =MAX(B123-E123-F123-H123-I123-J123,0) -> 431 | L123: 44 | M123: 8 | N123: 7 | O123: 4 | P123: 1 | Q123: 2 | R123: 58 | S123: 53 | T123: 41 | U123: =R123/A123 -> 0.8787878788 | V123: =S123/A123 -> 0.803030303 | W123: 0.6212121212 | X123: 22 | Y123: =X123/A123 -> 0.3333333333 | Z123: 0.66 | AA123: 0
A124: =A123+1 -> 67 | B124: 20751 | C124: 20139 | D124: 0.0001811493676 | E124: 18250 | F124: 2463 | G124: 1736 | H124: 200 | I124: 300 | J124: 500 | K124: 0 | L124: =IF($K124<=0,1+L123,L123) -> 45 | M124: 8 | N124: 7 | O124: 4 | P124: 1 | Q124: 2 | R124: =IF((B124-E124-F124)>0,R123+1,R123) -> 59 | S124: =IF(B124-E124-F124-H124>0,S123+1,S123) -> 53 | T124: =IF(B124-E124-F124-H124-I124>0,T123+1,T123) -> 41 | U124: 0.8805970149 | V124: 0.7910447761 | W124: 0.6119402985 | X124: =IF(K124>0,X123+1,X123) -> 22 | Y124: 0.328358209 | Z124: =Z123+1/100 -> 0.67 | AA124: 0
A125: 68 | B125: 20627 | C125: 21966 | D125: 0.0001234272516 | E125: 18250 | F125: 1855 | G125: 1905 | H125: 200 | I125: 300 | J125: 500 | K125: 0 | L125: 46 | M125: 8 | N125: 7 | O125: 4 | P125: 1 | Q125: 2 | R125: 60 | S125: 54 | T125: 42 | U125: 0.8823529412 | V125: 0.7941176471 | W125: 0.6176470588 | X125: 22 | Y125: 0.3235294118 | Z125: 0.68 | AA125: 0
A126: 69 | B126: 21839 | C126: 21901 | D126: 0.0001573325828 | E126: 18250 | F126: 2021 | G126: 2071 | H126: 200 | I126: 300 | J126: 500 | K126: 568 | L126: 46 | M126: =IF(AND($K126>0,K126<=200),M125+1,M125) -> 8 | N126: =IF(AND($K126>200,$K126<=400),N125+1,N125) -> 7 | O126: =IF(AND($K126>400,$K126<=600),O125+1,O125) -> 5 | P126: =IF(AND($K126>600,$K126<=800),P125+1,P125) -> 1 | Q126: =IF(AND($K126>800,$K126<=1000),Q125+1,Q125) -> 2 | R126: 61 | S126: 55 | T126: 43 | U126: 0.884057971 | V126: 0.7971014493 | W126: 0.6231884058 | X126: 23 | Y126: 0.3333333333 | Z126: 0.69 | AA126: 0
A127: 70 | B127: 20894 | C127: 21994 | D127: 0.0001105968852 | E127: 18250 | F127: 1627 | G127: 2149 | H127: 200 | I127: 300 | J127: 500 | K127: 17 | L127: 46 | M127: 9 | N127: 7 | O127: 5 | P127: 1 | Q127: 2 | R127: 62 | S127: 56 | T127: 44 | U127: 0.8857142857 | V127: 0.8 | W127: 0.6285714286 | X127: 24 | Y127: 0.3428571429 | Z127: 0.7 | AA127: 0
A128: 71 | B128: 20192 | C128: 20553 | D128: 0.0005350423627 | E128: 18250 | F128: 1895 | G128: 1669 | H128: 200 | I128: 300 | J128: 500 | K128: 0 | L128: 47 | M128: 9 | N128: 7 | O128: 5 | P128: 1 | Q128: 2 | R128: 63 | S128: 56 | T128: 44 | U128: 0.8873239437 | V128: 0.7887323944 | W128: 0.6197183099 | X128: 24 | Y128: 0.338028169 | Z128: 0.71 | AA128: 0
A129: 72 | B129: 21277 | C129: 20535 | D129: 0.0005177610935 | E129: 18250 | F129: 2002 | G129: 2433 | H129: 200 | I129: 300 | J129: 500 | K129: 25 | L129: 47 | M129: 10 | N129: 7 | O129: 5 | P129: 1 | Q129: 2 | R129: 64 | S129: 57 | T129: 45 | U129: 0.8888888889 | V129: 0.7916666667 | W129: 0.625 | X129: 25 | Y129: 0.3472222222 | Z129: 0.72 | AA129: 0
A130: 73 | B130: 20439 | C130: 20373 | D130: 0.0003634733308 | E130: 18250 | F130: 2436 | G130: 2233 | H130: 200 | I130: 300 | J130: 500 | K130: 0 | L130: 48 | M130: 10 | N130: 7 | O130: 5 | P130: 1 | Q130: 2 | R130: 64 | S130: 57 | T130: 45 | U130: 0.8767123288 | V130: 0.7808219178 | W130: 0.6164383562 | X130: 25 | Y130: 0.3424657534 | Z130: 0.73 | AA130: 0
A131: 74 | B131: 21774 | C131: 21637 | D131: 0.0003543998964 | E131: 18250 | F131: 2227 | G131: 2070 | H131: 200 | I131: 300 | J131: 500 | K131: 297 | L131: 48 | M131: 10 | N131: 8 | O131: 5 | P131: 1 | Q131: 2 | R131: 65 | S131: 58 | T131: 46 | U131: 0.8783783784 | V131: 0.7837837838 | W131: 0.6216216216 | X131: 26 | Y131: 0.3513513514 | Z131: 0.74 | AA131: 0
A132: 75 | B132: 20290 | C132: 20895 | D132: 0.0007804837551 | E132: 18250 | F132: 1747 | G132: 1890 | H132: 200 | I132: 300 | J132: 500 | K132: 0 | L132: 49 | M132: 10 | N132: 8 | O132: 5 | P132: 1 | Q132: 2 | R132: 66 | S132: 59 | T132: 46 | U132: 0.88 | V132: 0.7866666667 | W132: 0.6133333333 | X132: 26 | Y132: 0.3466666667 | Z132: 0.75 | AA132: 0
A133: 76 | B133: 20899 | C133: 21911 | D133: 0.0001517329285 | E133: 18250 | F133: 1707 | G133: 1898 | H133: 200 | I133: 300 | J133: 500 | K133: 0 | L133: 50 | M133: 10 | N133: 8 | O133: 5 | P133: 1 | Q133: 2 | R133: 67 | S133: 60 | T133: 47 | U133: 0.8815789474 | V133: 0.7894736842 | W133: 0.6184210526 | X133: 26 | Y133: 0.3421052632 | Z133: 0.76 | AA133: 0
A134: 77 | B134: 20710 | C134: 20746 | D134: 0.0007012973146 | E134: 18250 | F134: 1862 | G134: 1743 | H134: 200 | I134: 300 | J134: 500 | K134: 0 | L134: 51 | M134: 10 | N134: 8 | O134: 5 | P134: 1 | Q134: 2 | R134: 68 | S134: 61 | T134: 48 | U134: 0.8831168831 | V134: 0.7922077922 | W134: 0.6233766234 | X134: 26 | Y134: 0.3376623377 | Z134: 0.77 | AA134: 0
A135: =A134+1 -> 78 | B135: 21858 | C135: 20391 | D135: 0.0003800116562 | E135: 18250 | F135: 1871 | G135: 1707 | H135: 200 | I135: 300 | J135: 500 | K135: 737 | L135: 51 | M135: =IF(AND($K135>0,K135<=200),M134+1,M134) -> 10 | N135: =IF(AND($K135>200,$K135<=400),N134+1,N134) -> 8 | O135: =IF(AND($K135>400,$K135<=600),O134+1,O134) -> 5 | P135: =IF(AND($K135>600,$K135<=800),P134+1,P134) -> 2 | Q135: =IF(AND($K135>800,$K135<=1000),Q134+1,Q134) -> 2 | R135: 69 | S135: 62 | T135: 49 | U135: 0.8846153846 | V135: 0.7948717949 | W135: 0.6282051282 | X135: 27 | Y135: 0.3461538462 | Z135: 0.78 | AA135: 0
A136: =A135+1 -> 79 | B136: 20152 | C136: 20990 | D136: 0.0007977249998 | E136: 18250 | F136: 1626 | G136: 2305 | H136: 200 | I136: 300 | J136: 500 | K136: 0 | L136: 52 | M136: 10 | N136: 8 | O136: 5 | P136: 2 | Q136: 2 | R136: 70 | S136: 63 | T136: 49 | U136: 0.8860759494 | V136: 0.7974683544 | W136: 0.6202531646 | X136: 27 | Y136: 0.3417721519 | Z136: 0.79 | AA136: 0
A137: 80 | B137: 20414 | C137: 20131 | D137: 0.0001762039139 | E137: 18250 | F137: 2128 | G137: 1638 | H137: 200 | I137: 300 | J137: 500 | K137: 0 | L137: 53 | M137: 10 | N137: 8 | O137: 5 | P137: 2 | Q137: 2 | R137: 71 | S137: 63 | T137: 49 | U137: 0.8875 | V137: 0.7875 | W137: 0.6125 | X137: 27 | Y137: 0.3375 | Z137: 0.8 | AA137: 0
A138: 81 | B138: 21351 | C138: 20631 | D138: 0.0006076760493 | E138: 18250 | F138: 1882 | G138: 2273 | H138: 200 | I138: 300 | J138: 500 | K138: 219 | L138: 53 | M138: 10 | N138: 9 | O138: 5 | P138: 2 | Q138: 2 | R138: 72 | S138: 64 | T138: 50 | U138: 0.8888888889 | V138: 0.7901234568 | W138: 0.6172839506 | X138: 28 | Y138: 0.3456790123 | Z138: 0.81 | AA138: 0
A139: 82 | B139: 20614 | C139: 21647 | D139: 0.0003454147698 | E139: 18250 | F139: 2392 | G139: 2424 | H139: 200 | I139: 300 | J139: 500 | K139: 0 | L139: 54 | M139: 10 | N139: 9 | O139: 5 | P139: 2 | Q139: 2 | R139: 72 | S139: 64 | T139: 50 | U139: 0.8780487805 | V139: 0.7804878049 | W139: 0.6097560976 | X139: 28 | Y139: 0.3414634146 | Z139: 0.82 | AA139: 0
A140: 83 | B140: 20108 | C140: 20233 | D140: 0.0002460133804 | E140: 18250 | F140: 2451 | G140: 2215 | H140: 200 | I140: 300 | J140: 500 | K140: 0 | L140: 55 | M140: 10 | N140: 9 | O140: 5 | P140: 2 | Q140: 2 | R140: 72 | S140: 64 | T140: 50 | U140: 0.8674698795 | V140: 0.7710843373 | W140: 0.6024096386 | X140: 28 | Y140: 0.3373493976 | Z140: 0.83 | AA140: 0
A141: 84 | B141: 21248 | C141: 20832 | D141: 0.0007540931687 | E141: 18250 | F141: 2014 | G141: 1892 | H141: 200 | I141: 300 | J141: 500 | K141: 0 | L141: 56 | M141: 10 | N141: 9 | O141: 5 | P141: 2 | Q141: 2 | R141: 73 | S141: 65 | T141: 51 | U141: 0.869047619 | V141: 0.7738095238 | W141: 0.6071428571 | X141: 28 | Y141: 0.3333333333 | Z141: 0.84 | AA141: 0
A142: 85 | B142: 20852 | C142: 21509 | D142: 0.0004752314395 | E142: 18250 | F142: 1756 | G142: 2060 | H142: 200 | I142: 300 | J142: 500 | K142: 0 | L142: 57 | M142: 10 | N142: 9 | O142: 5 | P142: 2 | Q142: 2 | R142: 74 | S142: 66 | T142: 52 | U142: 0.8705882353 | V142: 0.7764705882 | W142: 0.6117647059 | X142: 28 | Y142: 0.3294117647 | Z142: 0.85 | AA142: 0
A143: 86 | B143: 20846 | C143: 21657 | D143: 0.0003365228078 | E143: 18250 | F143: 2060 | G143: 1570 | H143: 200 | I143: 300 | J143: 500 | K143: 0 | L143: 58 | M143: 10 | N143: 9 | O143: 5 | P143: 2 | Q143: 2 | R143: 75 | S143: 67 | T143: 53 | U143: 0.8720930233 | V143: 0.7790697674 | W143: 0.6162790698 | X143: 28 | Y143: 0.3255813953 | Z143: 0.86 | AA143: 0
A144: 87 | B144: 21478 | C144: 20295 | D144: 0.0002952770081 | E144: 18250 | F144: 2129 | G144: 1791 | H144: 200 | I144: 300 | J144: 500 | K144: 99 | L144: 58 | M144: 11 | N144: 9 | O144: 5 | P144: 2 | Q144: 2 | R144: 76 | S144: 68 | T144: 54 | U144: 0.8735632184 | V144: 0.7816091954 | W144: 0.6206896552 | X144: 29 | Y144: 0.3333333333 | Z144: 0.87 | AA144: 0
A145: 88 | B145: 21575 | C145: 21867 | D145: 0.000177431732 | E145: 18250 | F145: 2041 | G145: 1849 | H145: 200 | I145: 300 | J145: 500 | K145: 284 | L145: 58 | M145: 11 | N145: 10 | O145: 5 | P145: 2 | Q145: 2 | R145: 77 | S145: 69 | T145: 55 | U145: 0.875 | V145: 0.7840909091 | W145: 0.625 | X145: 30 | Y145: 0.3409090909 | Z145: 0.88 | AA145: 0
A146: 89 | B146: 20491 | C146: 21255 | D146: 0.0007005837572 | E146: 18250 | F146: 1654 | G146: 2181 | H146: 200 | I146: 300 | J146: 500 | K146: 0 | L146: 59 | M146: 11 | N146: 10 | O146: 5 | P146: 2 | Q146: 2 | R146: 78 | S146: 70 | T146: 56 | U146: 0.8764044944 | V146: 0.7865168539 | W146: 0.6292134831 | X146: 30 | Y146: 0.3370786517 | Z146: 0.89 | AA146: 0
A147: 90 | B147: 20530 | C147: 20918 | D147: 0.0007872264351 | E147: 18250 | F147: 2363 | G147: 2278 | H147: 200 | I147: 300 | J147: 500 | K147: 0 | L147: 60 | M147: 11 | N147: 10 | O147: 5 | P147: 2 | Q147: 2 | R147: 78 | S147: 70 | T147: 56 | U147: 0.8666666667 | V147: 0.7777777778 | W147: 0.6222222222 | X147: 30 | Y147: 0.3333333333 | Z147: 0.9 | AA147: 0
A148: 91 | B148: 20701 | C148: 21945 | D148: 0.0001337421813 | E148: 18250 | F148: 2095 | G148: 1740 | H148: 200 | I148: 300 | J148: 500 | K148: 0 | L148: 61 | M148: 11 | N148: 10 | O148: 5 | P148: 2 | Q148: 2 | R148: 79 | S148: 71 | T148: 56 | U148: 0.8681318681 | V148: 0.7802197802 | W148: 0.6153846154 | X148: 30 | Y148: 0.3296703297 | Z148: 0.91 | AA148: 0
A149: 92 | B149: 21631 | C149: 20582 | D149: 0.0005625702 | E149: 18250 | F149: 2307 | G149: 1919 | H149: 200 | I149: 300 | J149: 500 | K149: 74 | L149: 61 | M149: 12 | N149: 10 | O149: 5 | P149: 2 | Q149: 2 | R149: 80 | S149: 72 | T149: 57 | U149: 0.8695652174 | V149: 0.7826086957 | W149: 0.6195652174 | X149: 31 | Y149: 0.3369565217 | Z149: 0.92 | AA149: 0
A150: 93 | B150: 21282 | C150: 20150 | D150: 0.0001880981548 | E150: 18250 | F150: 2069 | G150: 1931 | H150: 200 | I150: 300 | J150: 500 | K150: 0 | L150: 62 | M150: 12 | N150: 10 | O150: 5 | P150: 2 | Q150: 2 | R150: 81 | S150: 73 | T150: 58 | U150: 0.8709677419 | V150: 0.7849462366 | W150: 0.623655914 | X150: 31 | Y150: 0.3333333333 | Z150: 0.93 | AA150: 0
A151: 94 | B151: 20280 | C151: 20972 | D151: 0.0007966344581 | E151: 18250 | F151: 1880 | G151: 1822 | H151: 200 | I151: 300 | J151: 500 | K151: 0 | L151: 63 | M151: 12 | N151: 10 | O151: 5 | P151: 2 | Q151: 2 | R151: 82 | S151: 73 | T151: 58 | U151: 0.8723404255 | V151: 0.7765957447 | W151: 0.6170212766 | X151: 31 | Y151: 0.329787234 | Z151: 0.94 | AA151: 0
A152: 95 | B152: 21526 | C152: 20961 | D152: 0.0007954610839 | E152: 18250 | F152: 2376 | G152: 2403 | H152: 200 | I152: 300 | J152: 500 | K152: 0 | L152: 64 | M152: 12 | N152: 10 | O152: 5 | P152: 2 | Q152: 2 | R152: 83 | S152: 74 | T152: 59 | U152: 0.8736842105 | V152: 0.7789473684 | W152: 0.6210526316 | X152: 31 | Y152: 0.3263157895 | Z152: 0.95 | AA152: 0
A153: 96 | B153: 21052 | C153: 21234 | D153: 0.0007151211196 | E153: 18250 | F153: 2113 | G153: 1587 | H153: 200 | I153: 300 | J153: 500 | K153: 0 | L153: 65 | M153: 12 | N153: 10 | O153: 5 | P153: 2 | Q153: 2 | R153: 84 | S153: 75 | T153: 60 | U153: 0.875 | V153: 0.78125 | W153: 0.625 | X153: 31 | Y153: 0.3229166667 | Z153: 0.96 | AA153: 0
A154: 97 | B154: 20327 | C154: 20673 | D154: 0.0006442622903 | E154: 18250 | F154: 2136 | G154: 2274 | H154: 200 | I154: 300 | J154: 500 | K154: 0 | L154: 66 | M154: 12 | N154: 10 | O154: 5 | P154: 2 | Q154: 2 | R154: 84 | S154: 75 | T154: 60 | U154: 0.8659793814 | V154: 0.7731958763 | W154: 0.618556701 | X154: 31 | Y154: 0.3195876289 | Z154: 0.97 | AA154: 0
A155: 98 | B155: 21969 | C155: 21094 | D155: 0.0007839082037 | E155: 18250 | F155: 2358 | G155: 2294 | H155: 200 | I155: 300 | J155: 500 | K155: 361 | L155: 66 | M155: 12 | N155: 11 | O155: 5 | P155: 2 | Q155: 2 | R155: 85 | S155: 76 | T155: 61 | U155: 0.8673469388 | V155: 0.7755102041 | W155: 0.6224489796 | X155: 32 | Y155: 0.3265306122 | Z155: 0.98 | AA155: 0
A156: 99 | B156: 21446 | C156: 20161 | D156: 0.0001952189846 | E156: 18250 | F156: 2074 | G156: 1776 | H156: 200 | I156: 300 | J156: 500 | K156: 122 | L156: 66 | M156: 13 | N156: 11 | O156: 5 | P156: 2 | Q156: 2 | R156: 86 | S156: 77 | T156: 62 | U156: 0.8686868687 | V156: 0.7777777778 | W156: 0.6262626263 | X156: 33 | Y156: 0.3333333333 | Z156: 0.99 | AA156: 0
A157: 100 | B157: 21231 | C157: 20843 | D157: 0.0007595042565 | E157: 18250 | F157: 2483 | G157: 2485 | H157: 200 | I157: 300 | J157: 500 | K157: 0 | L157: 67 | M157: 13 | N157: 11 | O157: 5 | P157: 2 | Q157: 2 | R157: 87 | S157: 78 | T157: 62 | U157: 0.87 | V157: 0.78 | W157: 0.62 | X157: 33 | Y157: 0.33 | Z157: 1 | AA157: 0
A158: Avg | B158: =AVERAGE(B58:B157) -> 20935.26 | C158: =AVERAGE(C58:C157) -> 21023.15 | D158: =SUM(D58:D157) -> 0.04909952849
